Cogmind - Beta 13 @@@ ROGUE MODE // 2024.03.20 @ 19:24:53 Player: Waste Result: Destroyed by KE-6FV(R) with Subdweller Laser Performance ------------- Evolutions (0) 0 Regions Visited (2) 400 Robots Destroyed (21) 105 Value Destroyed (704) 704 Prototype IDs (0) 0 Alien Tech Used (0) 0 Bonus (0) 0 TOTAL SCORE: 1209 Bonus ------- None Cogmind --------- Core Integrity 0/250 Matter 33/300 Energy 200/200 System Corruption 0% Temperature Cool (6) Movement Walking (260) Ox2 Location -10/Subcaves Parts ------- > --- POWER (1) -------- Subdweller Power Source > --- PROPULSION (2) --- Aluminum Leg Aluminum Leg > --- UTILITY (2) ------ High-capacity Storage Unit > --- WEAPON (2) ------- Barrage Gun Ripper > --- INVENTORY (20) --- Light Ion Engine Light Treads Improved Heat Sink Small Storage Unit Medium Laser Medium Laser Medium Laser Medium Laser Medium Laser Makeshift Laser Light Assault Rifle Peak State ------------ > --- POWER ------------ Subdweller Power Source > --- PROPULSION ------- Wheel > --- UTILITY ---------- High-capacity Storage Unit Makeshift Light Armor Plating > --- WEAPON ----------- Makeshift Laser Barrage Gun > --- INVENTORY -------- Light Ion Engine Subdweller Power Source Light Treads Aluminum Leg Aluminum Leg Subdweller Monowheel Improved Heat Sink Small Storage Unit Medium Laser Medium Laser Medium Laser Medium Laser Medium Laser Light Assault Rifle Grenade Launcher Piercing Trap [Rating: 17] Favorites ----------- Power Subdweller Power Source Engine Subdweller Power Source Propulsion Light Treads Treads Light Treads Leg Aluminum Leg Wheel Wheel Utility High-capacity Storage Unit Device Improved Heat Sink Storage High-capacity Storage Unit Protection Makeshift Light Armor Plating Weapon Medium Laser Energy Gun Medium Laser Ballistic Gun Assault Rifle Launcher Grenade Launcher Slashing Weapon Ripper Build | -11 -10 -10 ------- Run | Yrd Mat Sub Slots Evolved . | . . . Power . | . . . Propulsion . | . . . Utility . | . . . Weapon . | . . . Parts Attached 30 | . 9 21 Power 4 | . . 4 Engine 4 | . . 4 Core . | . . . Reactor . | . . . Propulsion 9 | . 2 7 Treads 2 | . . 2 Leg 2 | . . 2 Wheel 5 | . 2 3 Hover . | . . . Flight . | . . . Utility 3 | . 2 1 Device 1 | . 1 . Storage 1 | . 1 . Processor . | . . . Hackware . | . . . Protection 1 | . . 1 Artifact . | . . . Weapon 14 | . 5 9 Energy Gun 6 | . 5 1 Energy Cannon . | . . . Ballistic Gun 4 | . . 4 Ballistic Cannon . | . . . Launcher 3 | . . 3 Special Weapon . | . . . Impact Weapon . | . . . Slashing Weapon 1 | . . 1 Piercing Weapon . | . . . Special Melee Weapon . | . . . Unidentified Prototypes . | . . . Parts Lost 9 | . . 9 Power 1 | . . 1 Propulsion 4 | . . 4 Utility 1 | . . 1 Weapon 3 | . . 3 Highest Loss Streak 2 | . . 2 To Critical Strikes . | . . . Average Slot Usage (%) 94 | . 94 94 Engine 13 | . 14 13 Treads 13 | . . 15 Leg 2 | . 2 2 Wheel 9 | . 25 7 Device 4 | . 8 3 Storage 14 | . 14 14 Protection 8 | . . 9 Energy Gun 15 | . 28 13 Ballistic Gun 4 | . . 5 Launcher 6 | . . 8 Naked Turns . | . . . Heaviest Build 54 | 10 48 54 Greatest Support 40 | 20 26 40 Greatest Overweight (x) 5 | . 1 5 Average Overweight (x) 1 | . . 1 Largest Inventory Capacity 20 | . 20 20 Average Capacity 19 | . 18 20 Most Carried 18 | . 13 18 Average Carried 14 | . 10 14 Final Capacity 20 | 8 20 20 Final Carried 12 | 6 12 11 Class Distribution -------------------- 100% | Mutant Dominant Class ---------------- Mutant | -10/Materials Mutant | -10/Subcaves Resources | -11 -10 -10 ----------- Run | Yrd Mat Sub Matter Collected 588 | 200 90 298 Remotely . | . . . Salvage Created 630 | . 271 359 Parts 25 | . 8 17 Haulers Intercepted . | . . . Recyclers Shooed . | . . . Parts Field Recycled . | . . . Retrieved Matter . | . . . Parts Self-Destructed 8 | . . 8 Prevented . | . . . Kills | -11 -10 -10 ------- Run | Yrd Mat Sub Combat Hostiles Destroyed 20 | . 4 16 Guns 12 | . 4 8 AOE 8 | . . 8 Classes Destroyed 5 | . 2 3 Recycler 1 | . 1 . Swarmer 3 | . . 3 Grunt 5 | . 4 1 Sentry 1 | . . 1 Subdweller 11 | . . 11 Best Kill Streak 3 | . 2 3 Combat Bots Only 3 | . 2 3 Max Kills in Single Turn 2 | . 1 2 Gunslinging . | . . . Exploded 2 | . . 2 Melee . | . . . Uniques/NPCs Destroyed . | . . . Combat | -11 -10 -10 -------- Run | Yrd Mat Sub Hostile Shots Fired 119 | . 19 100 Missed 39 | . 7 32 Damage Taken 1474 | . 144 1330 Core 259 | . 36 223 Absorbed by Shields . | . . . Core Remaining (%) 100 | 100 . . Volleys Fired 87 | . 18 69 Largest 2 | . 2 2 Hottest 100 | . 100 100 Shots Fired 131 | . 36 95 Gun 105 | . 36 69 Cannon . | . . . Launcher 26 | . . 26 Special . | . . . Kinetic 35 | . . 35 Thermal 70 | . 36 34 Explosive 26 | . . 26 Electromagnetic . | . . . Robot Hit Streak 16 | . 9 16 Robot Miss Streak 5 | . 2 5 Penetration Max . | . . . Secondary Targets . | . . . Shots Hit Robots 79 | . 27 52 Core Hits 39 | . 11 28 Critical Kills . | . . . Critical Parts Destroyed . | . . . Critical Strikes 3 | . 2 1 Burn 3 | . 2 1 Melee Attacks 2 | . . 2 Impact . | . . . Slashing 2 | . . 2 Piercing . | . . . Sneak Attacks . | . . . Combat Hostiles . | . . . Follow-up Attacks . | . . . Damage Inflicted 2065 | . 319 1746 Guns 899 | . 319 580 Cannons . | . . . Explosions 1127 | . . 1127 Melee 39 | . . 39 Ramming . | . . . Kinetic 269 | . . 269 Thermal 630 | . 319 311 Explosive 1127 | . . 1127 Electromagnetic . | . . . Impact . | . . . Slashing 39 | . . 39 Piercing . | . . . Highest Corruption . | . . . Average Corruption . | . . . Corruption Purged . | . . . Corruption Blocked . | . . . Overload Shots . | . . . Overflow Damage 45 | . . 45 Projectiles . | . . . Explosions 45 | . . 45 Melee . | . . . Knockbacks . | . . . Impact . | . . . Kinetic . | . . . Secondary . | . . . Self-Inflicted Damage 161 | . . 161 Shots 10 | . . 10 Rammed . | . . . Targets Rammed . | . . . Kicked . | . . . Crushed . | . . . Highest Temperature 339 | . 339 16 Average Temperature 87 | . 140 6 Received Heat Transfer 294 | . 84 210 Siege Activations . | . . . Robots Corrupted . | . . . Combat Hostiles . | . . . Parts Fried . | . . . Impact Corruptions . | . . . Robots Melted . | . . . Combat Hostiles . | . . . Parts Melted 4 | . 1 3 Heat Transferred 1951 | . 1063 888 Parts Sabotaged . | . . . Parts Stolen . | . . . Parts Stripped . | . . . Power Chain Reactions . | . . . Alert | -11 -10 -10 ------- Run | Yrd Mat Sub Peak Influence 141 | . 141 . Initial . | . . . Average 77 | . 77 . Maximum Alert Level . | . . . Low Security (%) 100 | . 100 . Level 1 . | . . . Level 2 . | . . . Level 3 . | . . . Level 4 . | . . . Level 5 . | . . . High Security . | . . . Max Security . | . . . Squads Dispatched 2 | . 2 . Investigation . | . . . Extermination . | . . . Reinforcement 2 | . 2 . Assault . | . . . Garrison . | . . . Intercept . | . . . Searches Triggered . | . . . Construction Impeded . | . . . Haulers Reinforced . | . . . Active Scanning Responses . | . . . Cargo Convoy Interrupts . | . . . Stealth | -11 -10 -10 --------- Run | Yrd Mat Sub Distress Signals 1 | . 1 . Communications Jammed . | . . . Distress Signals . | . . . Times Spotted 31 | . 6 25 Peak Tracking Total 6 | . 3 6 Tactical Retreats 1 | . . 1 Traps | -11 -10 -10 ------- Run | Yrd Mat Sub Traps Triggered . | . . . Indirectly . | . . . Trap Hack Attempts . | . . . Triggered . | . . . Disarmed . | . . . Reprogrammed . | . . . Reused 1 | . . 1 Traps Extracted . | . . . Installed 1 | . . 1 Triggered . | . . . Most Traps Carried 1 | . . 1 Machines | -11 -10 -10 ---------- Run | Yrd Mat Sub Machines Disabled . | . . . Max in Single Turn . | . . . Machines Repaired . | . . . Machines Dismantled . | . . . Machines Sabotaged . | . . . Overloaded Fab Kills . | . . . Hacking | -11 -10 -10 --------- Run | Yrd Mat Sub Machines Accessed 2 | . 1 1 Terminals 1 | . 1 . Fabricators . | . . . Repair Stations . | . . . Recycling Units . | . . . Scanalyzers . | . . . Garrison Access . | . . . Total Hacks 5 | . 2 3 Successful 4 | . 1 3 Failed 1 | . 1 . Catastrophic . | . . . Database Lockouts . | . . . Manual 2 | . 2 . Terminals 2 | . 2 . Fabricators . | . . . Repair Stations . | . . . Recycling Units . | . . . Scanalyzers . | . . . Garrison Access . | . . . Terminal Hacks 4 | . 1 3 Record 3 | . . 3 Robot Analysis 1 | . 1 . Fabricator Hacks . | . . . Repair Station Hacks . | . . . Recycling Unit Hacks . | . . . Scanalyzer . | . . . Garrison Access Hacks . | . . . Unauthorized Hacks . | . . . Terminals . | . . . Fabricators . | . . . Repair Stations . | . . . Recycling Units . | . . . Scanalyzers . | . . . Garrison Access . | . . . Data Cores Recovered . | . . . Used . | . . . Hacking Detections 1 | . 1 . Full Trace Events . | . . . Feedback Events . | . . . Feedback Blocked . | . . . Robot Schematics Acquired . | . . . Robots Built . | . . . Authchips . | . . . Time . | . . . Total Robot Build Rating . | . . . Part Schematics Acquired . | . . . Parts Built . | . . . Authchips . | . . . Time . | . . . Total Part Build Rating . | . . . Parts Repaired . | . . . Time . | . . . Parts Recycled . | . . . Recycled Matter . | . . . Retrieved Matter . | . . . Retrieved Components . | . . . Parts Scanalyzed . | . . . Part Schematics Acquired . | . . . Parts Damaged . | . . . Bothacking | -11 -10 -10 ------------ Run | Yrd Mat Sub Used RIF Installer . | . . . Robots Hacked . | . . . Non-combat . | . . . Combat . | . . . Robot Hacks Applied . | . . . Relay Couplers Released . | . . . Fabnet Peak Effective % . | . . . Robots Rewired . | . . . Allies Hacked . | . . . Hacks Repelled . | . . . Allies | -11 -10 -10 -------- Run | Yrd Mat Sub Total Allies . | . . . Largest Group . | . . . Highest-Rated Group . | . . . Highest-Rated Ally . | . . . Total Orders . | . . . Ally Attacks . | . . . Total Damage . | . . . Kills . | . . . Allies Corrupted . | . . . Allies Melted . | . . . Intel | -11 -10 -10 ------- Run | Yrd Mat Sub Robot Analysis Total 1 | . 1 . Derelict Logs Recovered 1 | . . 1 Drone Launches . | . . . Drone Recoveries . | . . . Exploration | -11 -10 -10 ------------- Run | Yrd Mat Sub Turns Passed 2858 | . 415 2443 Spaces Moved 1462 | 1 238 1223 Core . | . . . Treads 518 | . . 518 Legs 100 | 1 26 73 Wheels 844 | . 212 632 Hover . | . . . Flight . | . . . Fastest Speed 105 | 120 105 105 Average Speed 169 | 120 106 182 Slowest Speed 320 | 120 120 320 Overloaded Moves . | . . . Propulsion Burnouts . | . . . Robots Hopped . | . . . Cave-ins Triggered . | . . . Exploration Rate (%) 33 | 2 28 70 Regions Visited 2 Branch Regions 1 Pre-discovered Areas . | . . . Known Exits Taken . | . . . Unknown Exits Taken 2 | 1 1 . Scrap Searched 1 | . . 1 Spaces Dug . | . . . Terrain Destroyed 109 | . . 109 Melee . | . . . Projectile 1 | . . 1 AOE 108 | . . 108 Terrain Rammed . | . . . Walls Destroyed . | . . . Machines Disabled . | . . . Actions | -11 -10 -10 --------- Run | Yrd Mat Sub Total 1702 | . 361 1341 Wait 102 | . 89 13 Move 1460 | . 237 1223 Hop . | . . . Pick Up 9 | . 4 5 Fast Attach 8 | . 4 4 Attach 9 | . 1 8 Detach 5 | . 1 4 Swap 13 | . 4 9 Drop 6 | . 3 3 Fire 87 | . 18 69 Melee 2 | . . 2 Ram . | . . . Kick . | . . . Crush . | . . . Escape Stasis . | . . . Rewire . | . . . Trap 1 | . . 1 Miscellaneous . | . . . Route ------- -11/Scrapyard -10/Materials (discovered 3 exits: [*Mat] / [*Min] / *Sub) -10/Subcaves (discovered 2 exits: [*Mat] / [*Rec]) History --------- Turn | Location | Event 1 | -11/Scrapyard | Discovered new exit (range 0) 1 | -11/Scrapyard | Entered Materials 269 | -10/Materials | Discovered new exit (range 7) 288 | -10/Materials | Discovered new exit (range 3) 309 | -10/Materials | Build established: Mutant 387 | -10/Materials | Discovered new exit (range 5) 416 | -10/Materials | Entered Subcaves 577 | -10/Subcaves | Visited Clippyterm 580 | -10/Subcaves | Learned Factory fabricator intel 983 | -10/Subcaves | Shifting Twisted Machinery released Mak. Light Armor Plating 984 | -10/Subcaves | Shifting Twisted Machinery released Sub. Power Source 1340 | -10/Subcaves | Shifting Twisted Machinery released Sub. Monowheel 1345 | -10/Subcaves | Shifting Twisted Machinery released Barrage Gun 1348 | -10/Subcaves | Discovered new exit (range 12) 1940 | -10/Subcaves | Learned Materials interactive machine intel 2023 | -10/Subcaves | Core integrity fell below 50% 2416 | -10/Subcaves | Discovered new exit (range 10) 2560 | -10/Subcaves | Core integrity fell below 20% 2603 | -10/Subcaves | Shifting Twisted Machinery released Hvy. Riot Gun 2808 | -10/Subcaves | Shifting Twisted Machinery released Ripper 2859 | -10/Subcaves | Destroyed by KE-6FV(R) with Subdweller Laser Last Messages --------------- 02462_ Acquired 31 matter. 02525_ Grenade Launcher destroyed. 02525_ Destroyed Grenade Launcher. 02559_ A1-OBP(R) destroyed. 02563_ Acquired 24 matter. 02569_ The unstable cave ceiling collapses. Hvy. Riot Gun falls loose from the Twisted Machinery. 02603_ SN-E0A(R): "LEAVESUB!" 02634_ The unstable cave ceiling collapses. 02643_ Acquired Ripper. 02651_ Sub. Monowheel destroyed. 02651_ Mak. Light Armor Plating destroyed. 02654_ 6X-JHV(R) destroyed. 02661_ Acquired 37 matter. Ripper falls loose from the Twisted Machinery. 02844_ Dropped Piercing Trap. 02844_ Installed Piercing Trap. 02852_ KE-6FV(R) triggered Piercing Trap. 02852_ Spikes shoot up from the floor. 02852_ KE-6FV(R) suffers critical hit (Impale). Map ----- +----------------------------------------------------+ | ### ##????????????????????????????????????? | | #????????????????????????????????????? | | #????????????????????????????????????? | | #### #####????????????????????????????????????? | | ???## ##????????????????????????????????????????? | | ???## #??????????????????#??????????????????????? | | ???# ##????????????????"""#?????????????????????? | | ???# #####????????????? "#?????????????????????? | | ?###### ##?????????? "#?????????????????????? | | ## ## #?????#### ""#?? ????????????????? | | # # ####?##% <#? ????????????????? | | # ## ## ### ## ""#?? ????????????????? | | # ## # ###????? "#?? ??????????????? | | ###????????????? #??? ?? ???????? | | ####??????????????? ""#?? ????????? | | "#?????????????????# "" ## ????????? | | ##?????????????????# "" ?????????? | | ##????????????????##"/"" ??????????? | | "" #????##?????????## """"" #???????????? | | "" ##???# ##???###?# """ ##??????????? | | " "#??## #####"### """ ###????????? | | " #? #"" [" " "" ##???????? | | # #" ## """" " "" #???????? | | ####" !& #####"" """# #### "" ###?????? | | ## & ! ###### ## ##### "" #?????? | | " " # * ## """#""#####@#"### ##?????? | | ! ### #""""""#### R""^ ##??????? | | # "#?#" ##" # R #???????? | | ##"" # # """ ### ### ## # ######???????? | | ?# # " ## ;#?####### #????????????? | | # ## "" "" ###???????# #????????????? | | " #### """"" # #?????????## #????????????? | | ######??###"######## ##???????????###????????????? | | ??????????###??????###???????????????????????????? | | ?????????????????????????????????????????????????? | | ?????????????????????????????????????????????????? | | ?????????????????????????????????????????????????? | | ?????????????????????????????????????????????????? | | ?????????????????????????????????????????????????? | | ?????????????????????????????????????????????????? | | ?????????????????????????????????????????????????? | | ?????????????????????????????????????????????????? | | ?????????????????????????????????????????????????? | | ?????????????????????????????????????????????????? | | ?????????????????????????????????????????????????? | | ?????????????????????????????????????????????????? | | ?????????????????????????????????????????????????? | | ?????????????????????????????????????????????????? | | | | | +----------------------------------------------------+ Best States ------------- Heat Dissipation 39 Energy Generation 15 Energy Capacity 200 Matter Stores 300 Matter Capacity 300 Sight Range 16 Terrain Scan Density 10 Armor Coverage 100 Evasion (%) 55 Recoil Reduction 2 Item Schematics ----------------- None Robot Schematics ------------------ None Fabricated ------------ Nothing Alien Tech Used ----------------- None Achievements -------------- None Challenges ------------ None Game ------ Seed SeismicRagnarokRedirector Manual? 0 Play Time 00:13:05 Cumulative 165.7 hours Start 2024.03.18 @ 21:18:38 End 2024.03.20 @ 19:24:53 Sessions 3 Manual Loads 0 Difficulty Rogue Special Mode None Game No. 232 Rogue 232 Adventurer 0 Explorer 0 Win Type - Total 3 Types 2/0/0/1/0/0/0/0/0 Lore% 63 Gallery% 72 Achievement% 65 Wizard Run 0 Options --------- Layout 0 ASCII 0 Keyboard 0 Movement Numpad Keybinds 0 Fullscreen 1 Font 18/SmallcapsGlow Map View 76x50 Zoom Use 0% Tactical HUD 1 Map Filters NONE Filters NONE Steam 1 RUN: b87dedee-21fa-4871-873d-7e12f9bb1032